fUSD/lending_fUSD_20251212
["ID","MTS","AMOUNT","RATE_DAILY","PERIOD"]
[398337105,1765538040683,-500.0,0.0004,30]
[398337106,1765538040693,-709.46,0.0004,30]
[398337107,1765538040702,-755.64,0.0004,30]
[398337108,1765538040712,-500.0,0.0004,30]
[398337109,1765538040722,-1337.95,0.0004,30]
[398337110,1765538040732,-500.0,0.0004,30]
[398337111,1765538040741,-3627.22,0.0004,30]
[398337112,1765538040751,-750.49,0.0004,30]
[398337113,1765538040761,-500.0,0.0004,30]
[398337114,1765538040771,-630.99798856,0.0004,30]
[398337115,1765538040781,-500.0,0.0004,30]
[398337116,1765538040790,-500.0,0.0004,30]
[398337117,1765538040799,-856.96,0.0004,30]
[398337118,1765538040808,-1759.45,0.0004,30]
[398337119,1765538040818,-500.0,0.0004,30]
[398337120,1765538040827,-524.23,0.0004,30]
[398337121,1765538040836,-154.07504724,0.0004,30]
[398337122,1765538040846,-500.0,0.0004,30]
[398337123,1765538040857,-500.54,0.0004,30]
[398337124,1765538040867,-1039.78,0.0004,30]
[398337125,1765538040877,-730.61,0.0004,30]
[398337126,1765538040886,-615.84,0.0004,30]
[398337127,1765538040896,-500.0,0.0004,30]
[398337128,1765538040906,-647.65,0.0004,30]
[398337129,1765538040916,-500.0,0.0004,30]
[398337130,1765538040926,-500.0,0.0004,30]
[398337131,1765538040936,-906.8,0.0004,30]
[398337132,1765538040946,-551.86,0.0004,30]
[398337133,1765538040956,-1472.62,0.0004,30]
[398337134,1765538040970,-500.0,0.0004,30]
[398337135,1765538040982,-500.0,0.0004,30]
[398337136,1765538040992,-500.0,0.0004,30]
[398337137,1765538041001,-419.95838811,0.0004,30]
[398337138,1765538041011,-500.0,0.0004,30]
[398337139,1765538041021,-500.0,0.0004,30]
[398337140,1765538041031,-500.0,0.0004,30]
[398337141,1765538041040,-2737.4,0.0004,30]
[398337142,1765538041050,-1372.17,0.0004,30]
[398337143,1765538041060,-500.0,0.0004,30]
[398337144,1765538041071,-500.0,0.0004,30]
[398337145,1765538041080,-500.0,0.0004,30]
[398337146,1765538041090,-500.0,0.0004,30]
[398337147,1765538041099,-500.0,0.0004,30]
[398337148,1765538041110,-500.0,0.0004,30]
[398337149,1765538041120,-500.0,0.0004,30]
[398337150,1765538041129,-500.0,0.0004,30]
[398337151,1765538041138,-2430.46,0.0004,30]
[398337152,1765538041148,-500.0,0.0004,30]
[398337153,1765538041157,-500.0,0.0004,30]
[398337154,1765538041167,-500.0,0.0004,30]
[398337155,1765538041176,-500.0,0.0004,30]
[398337156,1765538041186,-1139.75,0.0004,30]
[398337157,1765538041196,-1401.35,0.0004,30]
[398337158,1765538041206,-500.0,0.0004,30]
[398337159,1765538041216,-800.13,0.0004,30]
[398337160,1765538041226,-500.0,0.0004,30]
[398337161,1765538041235,-1445.96,0.0004,30]
[398337162,1765538041244,-500.0,0.0004,30]
[398337163,1765538041254,-918.45,0.0004,30]
[398337164,1765538041263,-1070.7,0.0004,30]
[398337165,1765538041273,-500.0,0.0004,30]
[398337166,1765538041283,-500.0,0.0004,30]
[398337167,1765538041293,-500.0,0.0004,30]
[398337168,1765538041303,-370.54089576,0.0004,30]
[398337169,1765538041313,-500.0,0.0004,30]
[398337170,1765538041323,-2437.96,0.0004,30]
[398337171,1765538041334,-500.0,0.0004,30]
[398337172,1765538041344,-500.0,0.0004,30]
[398337173,1765538041353,-500.0,0.0004,30]
[398337174,1765538041363,-592.87,0.0004,30]
[398337175,1765538041372,-500.0,0.0004,30]
[398337176,1765538041382,-500.0,0.0004,30]
[398337177,1765538041392,-509.14468051,0.0004,30]
[398337178,1765538041402,-507.15553873,0.0004,30]
[398337179,1765538041412,-500.0,0.0004,30]
[398337180,1765538041422,-542.04,0.0004,30]
[398337181,1765538041432,-1588.94,0.0004,30]
[398337182,1765538041441,-500.0,0.0004,30]
[398337183,1765538041451,-500.0,0.0004,30]
[398337184,1765538041461,-537.45,0.0004,30]
[398337185,1765538041471,-500.0,0.0004,30]
[398337186,1765538041481,-522.96,0.0004,30]
[398337187,1765538041491,-500.0,0.0004,30]
[398337188,1765538041501,-1096.52,0.0004,30]
[398337189,1765538041510,-500.0,0.0004,30]
[398337190,1765538041520,-500.0,0.0004,30]
[398337191,1765538041530,-637.83,0.0004,30]
[398337192,1765538041539,-698.44,0.0004,30]
[398337193,1765538041548,-500.0,0.0004,30]
[398337194,1765538041558,-660.2,0.0004,30]
[398337195,1765538041567,-500.0,0.0004,30]
[398337196,1765538041577,-500.0,0.0004,30]
[398337197,1765538041587,-500.0,0.0004,30]
[398337198,1765538041597,-500.0,0.0004,30]
[398337199,1765538041608,-500.0,0.0004,30]
[398337200,1765538041617,-500.0,0.0004,30]
[398337201,1765538041628,-1065.82,0.0004,30]
[398337202,1765538041639,-634.76427637,0.0004,30]
[398337203,1765538041650,-500.0,0.0004,30]
[398337204,1765538041660,-498.36251989,0.0004,30]
[398337205,1765538041670,-500.0,0.0004,30]
[398337206,1765538041680,-500.0,0.0004,30]
[398337207,1765538041691,-500.0,0.0004,30]
[398337208,1765538041700,-2027.17,0.0004,30]
[398337209,1765538041710,-663.04,0.0004,30]
[398337210,1765538041720,-500.0,0.0004,30]
[398337211,1765538041730,-500.0,0.0004,30]
[398337212,1765538041897,-500.0,0.0004,30]
[398337213,1765538041907,-500.0,0.0004,30]
[398337214,1765538041916,-500.0,0.0004,30]
[398337215,1765538041926,-500.0,0.0004,30]
[398337216,1765538041936,-500.0,0.0004,30]
[398337217,1765538041946,-500.0,0.0004,30]
[398337218,1765538041956,-500.0,0.0004,30]
[398337219,1765538041967,-1034.23,0.0004,30]
[398337220,1765538041976,-1526.42,0.0004,30]
[398337221,1765538041986,-500.0,0.0004,30]
[398337222,1765538041996,-500.0,0.0004,30]
[398337223,1765538042006,-500.0,0.0004,30]
[398337224,1765538042017,-500.0,0.0004,30]
[398337225,1765538042027,-604.96,0.0004,30]
[398337226,1765538042037,-500.0,0.0004,30]
[398337227,1765538042047,-500.0,0.0004,30]
[398337228,1765538042058,-500.0,0.0004,30]
[398337229,1765538042070,-500.0,0.0004,30]
[398337230,1765538042079,-500.0,0.0004,30]
[398337231,1765538042089,-336.10721158,0.0004,30]
[398337232,1765538042099,-507.80784507,0.0004,30]
[398337233,1765538042109,-500.0,0.0004,30]
[398337234,1765538042119,-500.0,0.0004,30]
[398337235,1765538042129,-500.0,0.0004,30]
[398337236,1765538042139,-363.02368819,0.0004,30]
[398337237,1765538042149,-500.0,0.0004,30]
[398337238,1765538042160,-421.60189955,0.0004,30]
[398337239,1765538042170,-526.63,0.0004,30]
[398337240,1765538042180,-500.0,0.0004,30]
[398337241,1765538042191,-1577.6,0.0004,30]
[398337242,1765538042201,-500.0,0.0004,30]
[398337243,1765538042211,-500.0,0.0004,30]
[398337244,1765538042221,-500.0,0.0004,30]
[398337245,1765538042232,-500.0,0.0004,30]
[398337246,1765538042242,-1132.8,0.0004,30]
[398337247,1765538042253,-705.52,0.0004,30]
[398337248,1765538042262,-570.07,0.0004,30]
[398337249,1765538042272,-961.9,0.0004,30]
[398337250,1765538042283,-500.0,0.0004,30]
[398337251,1765538042293,-735.82,0.0004,30]
[398337252,1765538042303,-749.42,0.0004,30]
[398337253,1765538042313,-1191.88,0.0004,30]
[398337254,1765538042323,-522.47,0.0004,30]
[398337255,1765538042333,-4298.84,0.0004,30]
[398337256,1765538042343,-974.16,0.0004,30]
[398337257,1765538042353,-500.0,0.0004,30]
[398337258,1765538042363,-1095.96,0.0004,30]
[398337259,1765538042374,-500.0,0.0004,30]
[398337260,1765538042384,-508.24118354,0.0004,30]
[398337261,1765538042394,-500.0,0.0004,30]
[398337262,1765538042404,-938.71,0.0004,30]
[398337263,1765538042414,-1397.58,0.0004,30]
[398337264,1765538042424,-456.68758441,0.0004,30]
[398337265,1765538042434,-500.0,0.0004,30]
[398337266,1765538042443,-500.0,0.0004,30]
[398337267,1765538042453,-2368.57,0.0004,30]
[398337268,1765538042463,-209.12567876,0.0004,30]
[398337269,1765538042473,-500.0,0.0004,30]
[398337270,1765538042483,-508.91,0.0004,30]
[398337271,1765538042492,-500.0,0.0004,30]
[398337272,1765538042502,-1181.83,0.0004,30]
[398337273,1765538042511,-2107.36,0.0004,30]
[398337274,1765538042521,-591.32,0.0004,30]
[398337275,1765538042531,-500.0,0.0004,30]
[398337276,1765538042540,-1407.05,0.0004,30]
[398337277,1765538042551,-157.12842504,0.0004,30]
[398337278,1765538042561,-500.0,0.0004,30]
[398337279,1765538042571,-500.0,0.0004,30]
[398337280,1765538042583,-712.24,0.0004,30]
[398337281,1765538042594,-500.0,0.0004,30]
[398337282,1765538042605,-500.0,0.0004,30]
[398337283,1765538042616,-500.0,0.0004,30]
[398337284,1765538042627,-500.0,0.0004,30]
[398337285,1765538042639,-1000.77,0.0004,30]
[398337286,1765538042649,-500.0,0.0004,30]
[398337287,1765538042660,-500.0,0.0004,30]
[398337288,1765538042671,-500.0,0.0004,30]
[398337289,1765538042684,-1480.01,0.0004,30]
[398337290,1765538042695,-578.91,0.0004,30]
[398337291,1765538042706,-796.45,0.0004,30]
[398337292,1765538042716,-1121.9,0.0004,30]
[398337293,1765538042726,-538.64,0.0004,30]
[398337294,1765538042735,-875.09,0.0004,30]
[398337295,1765538042746,-500.0,0.0004,30]
[398337296,1765538042755,-500.0,0.0004,30]
[398337297,1765538042765,-1342.46,0.0004,30]
[398337298,1765538042775,-500.0,0.0004,30]
[398337299,1765538042784,-500.0,0.0004,30]
[398337300,1765538042794,-500.0,0.0004,30]
[398337301,1765538042804,-500.0,0.0004,30]
[398337302,1765538042814,-500.0,0.0004,30]
[398337303,1765538042823,-551.7,0.0004,30]
[398337304,1765538042832,-502.17410493,0.0004,7]
[398337305,1765538042842,-500.0,0.0004,30]
[398337306,1765538042851,-500.0,0.0004,30]
[398337307,1765538042865,-500.0,0.0004,30]
[398337308,1765538042875,-500.0,0.0004,30]
[398337309,1765538042884,-891.01,0.0004,30]
[398337310,1765538042894,-500.0,0.0004,30]
[398337311,1765538042904,-500.0,0.0004,30]
[398337312,1765538042914,-1631.76,0.0004,30]
[398337313,1765538042923,-500.0,0.0004,30]
[398337314,1765538042933,-511.07,0.0004,30]
[398337315,1765538042942,-500.0,0.0004,30]
[398337316,1765538042952,-500.0,0.0004,30]
[398337317,1765538042963,-935.63,0.0004,30]
[398337318,1765538042973,-360.25199252,0.0004,30]
[398337319,1765538042984,-500.0,0.0004,30]
[398337320,1765538042995,-1213.86,0.0004,30]
[398337321,1765538043006,-500.0,0.0004,30]
[398337322,1765538043016,-713.52,0.0004,30]
[398337323,1765538043034,-500.0,0.0004,30]
[398337324,1765538043044,-999.59,0.0004,30]
[398337325,1765538043053,-500.0,0.0004,30]
[398337326,1765538043063,-762.67,0.0004,30]
[398337327,1765538043073,-500.0,0.0004,30]
[398337328,1765538043082,-500.0,0.0004,30]
[398337329,1765538043092,-922.65,0.0004,30]
[398337330,1765538043101,-500.0,0.0004,30]
[398337331,1765538043112,-1139.73,0.0004,30]
[398337332,1765538043124,-960.26,0.0004,30]
[398337333,1765538043136,-921.07,0.0004,30]
[398337334,1765538043147,-824.08,0.0004,30]
[398337335,1765538043158,-500.0,0.0004,30]
[398337336,1765538043170,-500.0,0.0004,30]
[398337337,1765538043182,-1836.88,0.0004,30]
[398337338,1765538043194,-500.0,0.0004,30]
[398337339,1765538043205,-500.0,0.0004,30]
[398337340,1765538043216,-500.0,0.0004,30]
[398337341,1765538043227,-500.0,0.0004,30]
[398337342,1765538043238,-807.06,0.0004,30]
[398337343,1765538043249,-1304.95,0.0004,30]
[398337344,1765538043259,-500.0,0.0004,30]
[398337345,1765538043271,-1005.91,0.0004,30]
[398337346,1765538043282,-500.0,0.0004,30]
[398337347,1765538043293,-1051.07,0.0004,30]
[398337348,1765538043304,-500.0,0.0004,30]
[398337349,1765538043315,-231.58903133,0.0004,30]
[398337350,1765538043325,-500.0,0.0004,30]
[398337351,1765538043336,-500.0,0.0004,30]
[398337352,1765538043346,-929.4,0.0004,30]
[398337353,1765538043356,-500.0,0.0004,30]
[398337354,1765538043367,-500.0,0.0004,30]
[398337355,1765538043377,-500.0,0.0004,30]
[398337356,1765538043388,-500.0,0.0004,30]
[398337357,1765538043399,-500.0,0.0004,30]
[398337358,1765538043409,-621.09,0.0004,30]
[398337359,1765538043419,-500.0,0.0004,30]
[398337360,1765538043430,-500.0,0.0004,30]
[398337361,1765538043440,-500.0,0.0004,30]
[398337362,1765538043450,-1874.12,0.0004,30]
[398337363,1765538043459,-500.0,0.0004,30]
[398337364,1765538043470,-500.0,0.0004,30]
[398337365,1765538043480,-500.0,0.0004,30]
[398337366,1765538043493,-500.0,0.0004,30]
[398337367,1765538043504,-521.95,0.0004,30]
[398337368,1765538043514,-500.0,0.0004,30]
[398337369,1765538043524,-500.0,0.0004,30]
[398337370,1765538043534,-500.0,0.0004,25]
[398337371,1765538043544,-500.0,0.0004,30]
[398337372,1765538043554,-500.0,0.0004,30]
[398337373,1765538043564,-578.01,0.0004,30]
[398337374,1765538043574,-500.0,0.0004,12]
[398337375,1765538043584,-500.0,0.0004,30]
[398337376,1765538043594,-500.0,0.0004,30]
[398337377,1765538043604,-500.0,0.0004,30]
[398337378,1765538043614,-701.87,0.0004,30]
[398337379,1765538043624,-500.0,0.0004,30]
[398337380,1765538043634,-667.26,0.0004,7]
[398337381,1765538043647,-532.36,0.0004,30]
[398337382,1765538043660,-500.0,0.0004,30]
[398337383,1765538043670,-500.0,0.0004,30]
[398337384,1765538043681,-890.33,0.0004,30]
[398337385,1765538043691,-619.34,0.0004,30]
[398337386,1765538043700,-500.0,0.0004,30]
[398337387,1765538043710,-500.0,0.0004,30]
[398337388,1765538043720,-666.66,0.0004,30]
[398337389,1765538043730,-500.0,0.0004,30]
[398337390,1765538043740,-679.95,0.0004,30]
[398337391,1765538043750,-846.97,0.0004,30]
[398337392,1765538043760,-1622.6,0.0004,30]
[398337393,1765538043771,-500.0,0.0004,30]
[398337394,1765538043781,-512.5673632,0.0004,30]
[398337395,1765538043791,-500.0,0.0004,30]
[398337396,1765538043801,-500.0,0.0004,30]
[398337397,1765538043811,-1634.93,0.0004,30]
[398337398,1765538043821,-500.0,0.0004,30]
[398337399,1765538043831,-1372.09,0.0004,30]
[398337400,1765538043841,-867.67,0.0004,30]
[398337401,1765538043851,-488.73040178,0.0004,30]
[398337402,1765538043864,-500.0,0.0004,30]
[398337403,1765538043874,-500.0,0.0004,30]
[398337404,1765538043884,-500.0,0.0004,30]
[398337405,1765538043894,-500.0,0.0004,30]
[398337406,1765538043905,-630.63,0.0004,30]
[398337407,1765538043915,-500.0,0.0004,30]
[398337408,1765538043925,-1368.81,0.0004,30]
[398337409,1765538043935,-500.0,0.0004,30]
[398337410,1765538043945,-500.0,0.0004,30]
[398337411,1765538043956,-500.0,0.0004,30]
[398337412,1765538043966,-500.0,0.0004,30]
[398337413,1765538043977,-500.0,0.0004,30]
[398337414,1765538043987,-500.0,0.0004,30]
[398337415,1765538043997,-472.02073407,0.0004,30]
[398337416,1765538044007,-500.0,0.0004,30]
[398337417,1765538044017,-2251.55,0.0004,30]
[398337418,1765538044028,-1877.84,0.0004,30]
[398337419,1765538044038,-626.64,0.0004,30]
[398337420,1765538044048,-500.0,0.0004,30]
[398337421,1765538044058,-554.25,0.0004,30]
[398337422,1765538044068,-500.0,0.0004,30]
[398337423,1765538044078,-500.0,0.0004,30]
[398337424,1765538044090,-500.0,0.0004,30]
[398337425,1765538044101,-500.0,0.0004,30]
[398337426,1765538044111,-1066.72,0.0004,30]
[398337427,1765538044121,-500.0,0.0004,30]
[398337428,1765538044130,-1191.7,0.0004,30]
[398337429,1765538044141,-500.0,0.0004,30]
[398337430,1765538044150,-500.0,0.0004,30]
[398337431,1765538044161,-620.95,0.0004,30]
[398337432,1765538044171,-500.0,0.0004,30]
[398337433,1765538044182,-500.0,0.0004,30]
[398337434,1765538044191,-1109.61,0.0004,30]
[398337435,1765538044201,-500.0,0.0004,30]
[398337436,1765538044211,-500.0,0.0004,30]
[398337437,1765538044221,-2254.72,0.0004,30]
[398337438,1765538044231,-500.0,0.0004,30]
[398337439,1765538044241,-500.0,0.0004,30]
[398337440,1765538044252,-500.0,0.0004,30]
[398337441,1765538044262,-500.0,0.0004,30]
[398337442,1765538044273,-1451.06,0.0004,30]
[398337443,1765538044283,-524.1,0.0004,30]
[398337444,1765538044292,-500.0,0.0004,30]
[398337445,1765538044302,-535.99,0.0004,30]
[398337446,1765538044311,-1647.96,0.0004,30]
[398337447,1765538044320,-500.0,0.0004,30]
[398337448,1765538044330,-500.0,0.0004,30]
[398337449,1765538044339,-500.0,0.0004,30]
[398337450,1765538044348,-500.0,0.0004,30]
[398337451,1765538044358,-1607.35,0.0004,30]
[398337452,1765538044368,-500.0,0.0004,30]
[398337453,1765538044378,-1890.33,0.0004,30]
[398337454,1765538044387,-565.03873968,0.0004,30]
[398337455,1765538044397,-500.0,0.0004,30]
[398337456,1765538044407,-702.35,0.0004,30]
[398337457,1765538044417,-1448.32,0.0004,30]
[398337458,1765538044428,-1632.19,0.0004,30]
[398337459,1765538044438,-500.0,0.0004,30]
[398337460,1765538044449,-500.0,0.0004,30]
[398337461,1765538044460,-876.83,0.0004,30]
[398337462,1765538044470,-832.79,0.0004,30]
[398337463,1765538044481,-500.0,0.0004,30]
[398337464,1765538044492,-500.0,0.0004,30]
[398337465,1765538044503,-623.5,0.0004,30]
[398337466,1765538044514,-2761.6,0.0004,30]
[398337467,1765538044525,-604.56,0.0004,30]
[398337468,1765538044536,-769.61,0.0004,30]
[398337469,1765538044547,-1014.43,0.0004,30]
[398337470,1765538044558,-500.0,0.0004,30]
[398337471,1765538044570,-500.0,0.0004,30]
[398337472,1765538044581,-500.0,0.0004,30]
[398337473,1765538044591,-500.0,0.0004,30]
[398337474,1765538044602,-500.0,0.0004,30]
[398337475,1765538044614,-977.53,0.0004,30]
[398337476,1765538044625,-799.32,0.0004,30]
[398337477,1765538044636,-500.0,0.0004,30]
[398337478,1765538044647,-500.0,0.0004,30]
[398337479,1765538044657,-1062.18,0.0004,30]
[398337480,1765538044668,-882.68,0.0004,30]
[398337481,1765538044679,-502.48,0.0004,30]
[398337482,1765538044690,-500.0,0.0004,30]
[398337483,1765538044701,-500.0,0.0004,30]
[398337484,1765538044712,-500.0,0.0004,30]
[398337485,1765538044722,-907.2,0.0004,30]
[398337486,1765538044733,-500.0,0.0004,30]
[398337487,1765538044744,-566.21,0.0004,30]
[398337488,1765538044754,-1677.04,0.0004,30]
[398337489,1765538044765,-786.93,0.0004,30]
[398337490,1765538044776,-1523.05,0.0004,30]
[398337491,1765538044786,-500.0,0.0004,30]
[398337492,1765538044797,-623.75,0.0004,30]
[398337493,1765538044808,-646.21,0.0004,30]
[398337494,1765538044819,-500.0,0.0004,30]
[398337495,1765538044829,-500.0,0.0004,30]
[398337496,1765538044840,-500.0,0.0004,30]
[398337497,1765538044851,-850.56,0.0004,30]
[398337498,1765538044865,-506.59,0.0004,30]
[398337499,1765538044876,-2457.1,0.0004,30]
[398337500,1765538044887,-500.0,0.0004,30]
[398337501,1765538044898,-1824.58,0.0004,30]
[398337502,1765538044909,-593.38,0.0004,30]
[398337503,1765538044919,-500.0,0.0004,30]
[398337504,1765538044930,-500.0,0.0004,30]
[398337505,1765538044940,-500.0,0.0004,30]
[398337506,1765538044951,-2498.97,0.0004,30]
[398337507,1765538044962,-937.73,0.0004,30]
[398337508,1765538044973,-500.0,0.0004,30]
[398337509,1765538044985,-500.0,0.0004,30]
[398337510,1765538044995,-500.0,0.0004,30]
[398337511,1765538045006,-7728.61,0.0004,30]
[398337512,1765538045017,-500.0,0.0004,30]
[398337513,1765538045028,-472.98312078,0.0004,30]
[398337514,1765538045039,-500.0,0.0004,30]
[398337515,1765538045053,-500.0,0.0004,30]
[398337516,1765538045064,-521.3,0.0004,30]
[398337517,1765538045075,-5162.44,0.0004,30]
[398337518,1765538045086,-2045.54,0.0004,30]
[398337519,1765538045097,-4512.65,0.0004,30]
[398337520,1765538045107,-2044.49,0.0004,30]
[398337521,1765538045118,-500.0,0.0004,30]
[398337522,1765538045128,-500.0,0.0004,30]
[398337523,1765538045139,-803.09,0.0004,30]
[398337524,1765538045150,-500.0,0.0004,30]
[398337525,1765538045160,-500.0,0.0004,30]
[398337526,1765538045170,-880.62,0.0004,30]
[398337527,1765538045181,-1055.54,0.0004,30]
[398337528,1765538045191,-500.0,0.0004,30]
[398337529,1765538045202,-1170.58,0.0004,30]
[398337530,1765538045211,-2563.76,0.0004,30]
[398337531,1765538045222,-500.0,0.0004,30]
[398337532,1765538045232,-3132.56,0.0004,30]
[398337533,1765538045243,-647.8,0.0004,30]
[398337534,1765538045253,-920.56,0.0004,30]
[398337535,1765538045264,-1267.04,0.0004,30]
[398337536,1765538045274,-1034.08,0.0004,30]
[398337537,1765538045284,-500.0,0.0004,30]
[398337538,1765538045293,-500.0,0.0004,30]
[398337539,1765538045303,-636.17,0.0004,30]
[398337540,1765538045314,-534.23,0.0004,30]
[398337541,1765538045324,-9205.7,0.0004,30]
[398337542,1765538045334,-2487.95,0.0004,14]
[398337543,1765538045345,-852.0,0.0004,30]
[398337544,1765538045355,-500.0,0.0004,30]
[398337545,1765538045366,-500.0,0.0004,30]
[398337546,1765538045376,-1627.24,0.0004,30]
[398337547,1765538045387,-709.82,0.0004,30]
[398337548,1765538045397,-500.0,0.0004,30]
[398337549,1765538045408,-9937.58,0.0004,30]
[398337550,1765538045418,-1228.02,0.0004,30]
[398337551,1765538045428,-727.84,0.0004,30]
[398337552,1765538045439,-500.0,0.0004,30]
[398337553,1765538045450,-2584.59,0.0004,30]
[398337554,1765538045461,-3111.31,0.0004,30]
[398337555,1765538045472,-938.28,0.0004,30]
[398337556,1765538045483,-500.0,0.0004,30]
[398337557,1765538045494,-500.0,0.0004,30]
[398337558,1765538045505,-724.94,0.0004,30]
[398337559,1765538045516,-2254.56,0.0004,30]
[398337560,1765538045527,-899.02,0.0004,30]
[398337561,1765538045537,-500.0,0.0004,30]
[398337562,1765538045548,-922.78,0.0004,30]
[398337563,1765538045558,-500.0,0.0004,30]
[398337564,1765538045570,-500.0,0.0004,30]
[398337565,1765538045581,-730.51,0.0004,30]
[398337566,1765538045592,-500.0,0.0004,30]
[398337567,1765538045603,-670.8,0.0004,30]
[398337568,1765538045614,-500.0,0.0004,30]
[398337569,1765538045624,-890.92,0.0004,30]
[398337570,1765538045635,-1306.66,0.0004,30]
[398337571,1765538045646,-500.0,0.0004,30]
[398337572,1765538045657,-500.0,0.0004,30]
[398337573,1765538045668,-949.39,0.0004,30]
[398337574,1765538045680,-1193.64,0.0004,30]
[398337575,1765538045691,-667.64,0.0004,30]
[398337576,1765538045702,-1105.53,0.0004,30]
[398337577,1765538045713,-500.0,0.0004,30]
[398337578,1765538045723,-500.0,0.0004,30]
[398337579,1765538045734,-500.0,0.0004,30]
[398337580,1765538045745,-1566.37,0.0004,30]
[398337581,1765538045756,-691.31,0.0004,30]
[398337582,1765538045767,-986.5,0.0004,30]
[398337583,1765538045777,-2660.16,0.0004,30]
[398337584,1765538045787,-500.0,0.0004,30]
[398337585,1765538045797,-677.72,0.0004,30]
[398337586,1765538045807,-200.10118285,0.0004,30]
[398337587,1765538045818,-1062.51,0.0004,30]
[398337588,1765538045828,-500.0,0.0004,30]
[398337589,1765538045839,-1023.2,0.0004,30]
[398337590,1765538045849,-765.14,0.0004,30]
[398337591,1765538045863,-2249.34,0.0004,30]
[398337592,1765538045875,-541.12,0.0004,30]
[398337593,1765538045885,-641.4,0.0004,30]
[398337594,1765538045895,-500.0,0.0004,30]
[398337595,1765538045907,-500.0,0.0004,30]
[398337596,1765538045917,-2149.98,0.0004,30]
[398337597,1765538045927,-310.78345438,0.0004,30]
[398337598,1765538045940,-1066.93,0.0004,30]
[398337599,1765538045950,-500.0,0.0004,30]
[398337600,1765538045961,-500.0,0.0004,30]
[398337601,1765538045971,-500.0,0.0004,30]
[398337602,1765538045981,-1794.3,0.0004,30]
[398337603,1765538045991,-500.0,0.0004,30]
[398337604,1765538046002,-6024.98,0.0004,30]